bitfinex/quotes_ETHUSD_20250822
["timestamp","ask_amount","ask_price","bid_price","bid_amount"]
[1755837734537,0.2859,4298.2,4298.1,2.32760943]
[1755837734852,0.02323707,4298.4,4298.1,2.32760943]
[1755837735207,0.02323707,4298.4,4298.1,0.001]
[1755837736537,0.02323707,4298.4,4298.1,2.32760745]
[1755837737242,1.79,4298.5,4298.3,5.61390117]
[1755837737442,0.002,4298.8,4298.3,5.61390117]
[1755837737443,3.961,4298.7,4298.4,3.4378]
[1755837737733,0.02323707,4298.6,4298.4,2.76422972]
[1755837737937,0.02323707,4298.6,4298.4,2.32642972]
[1755837738239,0.02323707,4298.6,4298.2,2.32653145]
[1755837738439,0.002,4298.8,4298.7,2.32628469]
[1755837738645,0.002,4298.8,4298.7,5.61368469]
[1755837739241,0.002,4298.8,4298.7,6.05148469]
[1755837740428,0.4669,4298.8,4298.7,3.0]
[1755837740820,0.8310385,4298.8,4298.1,0.001]
[1755837741050,6.63818715,4298.5,4298.1,0.001]
[1755837741350,0.2859,4298.2,4298.1,0.001]
[1755837741550,4.2459,4298.2,4298.1,0.001]
[1755837741960,0.30913707,4298.2,4298.1,0.001]
[1755837742161,0.36419897,4298.2,4298.1,5.61500943]
[1755837743177,0.36419897,4298.2,4298.1,6.89296748]
[1755837744078,0.002,4298.8,4298.7,2.32628469]
[1755837744379,0.002,4298.8,4298.7,5.61368469]
[1755837744671,0.36612716,4298.8,4298.7,6.05148469]
[1755837744882,0.36612716,4298.8,4298.7,3.7252]
[1755837745254,0.36612716,4298.8,4298.7,3.0]
[1755837745465,0.65202716,4298.8,4298.7,3.0]
[1755837745883,0.36612716,4298.8,4298.7,3.0]
[1755837746778,0.002,4298.8,4298.7,3.0]
[1755837747155,0.2879,4298.8,4298.7,3.0]
[1755837749757,0.002,4298.8,4298.7,3.0]
[1755837749957,0.36613866,4298.8,4298.7,3.0]
[1755837751374,0.36613866,4298.8,4298.7,3.2874]
[1755837752365,0.36613866,4298.8,4298.7,3.0]
[1755837753806,0.65203866,4298.8,4298.7,3.0]
[1755837754791,0.36613866,4298.8,4298.7,3.0]
[1755837754993,0.36613866,4298.8,4298.7,3.2874]
[1755837755810,0.002,4298.8,4298.7,3.0]
[1755837756970,0.2879,4298.8,4298.7,3.0]
[1755837757709,0.719,4298.8,4298.7,3.0]
[1755837760027,1.08315618,4298.8,4298.7,3.0]
[1755837760398,0.65205618,4298.8,4298.7,3.0]
[1755837760884,4.61005618,4298.8,4298.7,3.0]
[1755837761091,5.05665618,4298.8,4298.7,3.0]
[1755837761526,4.32415618,4298.8,4298.7,3.0]
[1755837761992,4.34739325,4298.8,4298.7,3.0]
[1755837762196,0.68709325,4298.8,4298.7,3.0]
[1755837762528,4.64509325,4298.8,4298.7,3.0]
[1755837762727,4.34739325,4298.8,4298.7,3.0]
[1755837763411,4.34739325,4298.8,4298.7,3.2989]
[1755837763821,0.68709325,4298.8,4298.7,3.0]
[1755837764026,4.62185618,4298.8,4298.7,3.0]
[1755837764205,5.09169325,4298.8,4298.7,3.0]
[1755837764526,5.06845618,4298.8,4298.7,3.0]
[1755837765019,4.62185618,4298.8,4298.7,3.0]
[1755837765321,4.62185618,4298.8,4298.7,3.21706331]
[1755837765523,4.2577,4298.8,4298.7,3.21706331]
[1755837765689,0.2997,4298.8,4298.7,3.21706331]
[1755837765889,4.2577,4298.8,4298.7,3.21706331]
[1755837766119,4.2802,4298.8,4298.7,3.21706331]
[1755837766296,0.2997,4298.8,4298.7,3.21706331]
[1755837766499,3.96,4298.8,4298.7,3.51596331]
[1755837766688,3.96,4298.8,4298.7,3.98486331]
[1755837766887,0.002,4298.8,4298.7,3.98486331]
[1755837767093,3.96,4298.8,4298.7,3.98486331]
[1755837767719,3.96,4298.8,4298.7,6.311148]
[1755837769019,4.32412761,4298.8,4298.7,6.311148]
[1755837769222,4.32412761,4298.8,4298.7,6.31113461]
[1755837769825,4.32412761,4298.8,4298.7,3.98484992]
[1755837770324,4.32412761,4298.8,4298.7,6.31113461]
[1755837771117,0.36612761,4298.8,4298.7,6.31113461]
[1755837774123,0.36612761,4298.8,4298.7,3.98484992]
[1755837775327,0.36612761,4298.8,4298.7,3.51594992]
[1755837775694,0.36612761,4298.8,4298.7,3.98484992]
[1755837775897,0.36612761,4298.8,4298.7,3.51594992]
[1755837776115,0.66382761,4298.8,4298.7,3.21704992]
[1755837776320,1.11042761,4298.8,4298.7,3.21704992]
[1755837776522,0.7463,4298.8,4298.7,3.21704992]
[1755837777040,0.7463,4298.8,4298.7,3.0]
[1755837778438,0.2997,4298.8,4298.7,3.0]
[1755837778735,0.7463,4298.8,4298.7,3.0]
[1755837779036,0.2997,4298.8,4298.7,3.0]
[1755837779507,3.958,4298.8,4298.7,3.2989]
[1755837779706,4.32215274,4298.8,4298.7,3.2989]
[1755837780236,4.61985274,4298.8,4298.7,3.0]
[1755837780721,5.06645274,4298.8,4298.7,3.0]
[1755837781846,4.61985274,4298.8,4298.7,3.0]
[1755837782023,0.36615274,4298.8,4298.7,3.7678]
[1755837782618,4.32215274,4298.8,4298.7,3.7678]
[1755837783026,0.36615274,4298.8,4298.7,6.09408469]
[1755837783215,0.38938981,4298.8,4298.7,3.7678]
[1755837784716,0.38938981,4298.8,4298.7,6.09408469]
[1755837784931,0.38938981,4298.8,4298.7,3.7678]
[1755837785350,0.38938981,4298.8,4298.7,3.2989]
[1755837785546,0.02523707,4298.8,4298.7,3.0]
[1755837785736,0.32293707,4298.8,4298.7,3.0]
[1755837785936,7.40772422,4298.8,4298.7,3.0]
[1755837786257,7.38448715,4298.8,4298.7,3.0]
[1755837786549,0.2997,4298.8,4298.7,3.0]
[1755837786721,0.32293707,4298.8,4298.7,3.0]
[1755837787248,3.958,4298.8,4298.7,3.0]
[1755837788350,4.2635,4298.8,4298.7,3.0]
[1755837789153,4.62765215,4298.8,4298.7,3.0]
[1755837789341,5.07285215,4298.8,4298.7,3.0]
[1755837790953,0.67165215,4298.8,4298.7,3.0]
[1755837791131,4.62665215,4298.8,4298.7,3.0]
[1755837791332,0.67165215,4298.8,4298.7,3.0]
[1755837791537,4.62665215,4298.8,4298.7,3.0]
[1755837794059,4.32115215,4298.8,4298.7,3.3056]
[1755837794259,4.32115215,4298.8,4298.7,3.0]
[1755837794858,0.36615215,4298.8,4298.7,3.0]
[1755837795056,0.36615215,4298.8,4298.7,3.7507]
[1755837798766,0.36615215,4298.8,4298.7,6.07698469]
[1755837799169,0.36615215,4298.8,4298.7,6.68468316]
[1755837799548,0.36615215,4298.8,4298.7,4.35839847]
[1755837799857,0.36615215,4298.8,4298.7,3.7507]
[1755837801761,0.66775215,4298.8,4298.7,3.0]
[1755837803074,4.62175215,4298.8,4298.7,3.0]
[1755837805473,5.07075215,4298.8,4298.7,3.0]
[1755837805684,5.07075215,4298.8,4298.1,0.001]
[1755837805685,4.7066,4298.8,4298.1,0.001]
[1755837805861,6.63818715,4298.6,4298.1,0.001]
[1755837806163,0.303,4298.2,4298.1,0.001]
[1755837806370,4.256,4298.2,4298.1,0.001]
[1755837806569,4.27923707,4298.2,4298.1,0.001]
[1755837806775,4.72973707,4298.2,4298.1,0.001]
[1755837806984,4.7065,4298.2,4298.1,0.001]
[1755837808862,4.256,4298.2,4298.1,0.001]
[1755837809267,4.62021294,4298.2,4298.1,0.001]
[1755837812364,11.70750009,4298.2,4298.1,0.001]
[1755837815005,11.25840009,4298.2,4298.1,0.001]
[1755837820400,11.69830009,4298.2,4298.1,0.001]
[1755837820865,11.33408715,4298.2,4298.1,0.001]
[1755837823678,11.99408715,4298.2,4298.1,0.001]
[1755837823882,12.35837285,4298.2,4298.1,0.001]
[1755837825068,0.66,4298.1,4298.0,0.001]
[1755837825269,1.42483707,4298.1,4298.0,0.001]
[1755837825772,1.42483707,4298.1,4297.8,0.021]
[1755837826088,0.66,4297.9,4297.8,0.021]
[1755837826270,0.98813707,4297.9,4297.8,0.021]
[1755837826470,5.38003707,4297.9,4297.8,0.021]
[1755837826671,5.3568,4297.9,4297.8,0.021]
[1755837827079,4.2569,4297.9,4297.8,0.021]
[1755837827278,4.28013707,4297.9,4297.8,0.021]
[1755837827477,0.32813707,4297.9,4297.8,0.021]
[1755837827685,4.27913707,4297.9,4297.8,0.021]
[1755837828206,0.32813707,4297.9,4297.8,0.021]
[1755837828408,4.27913707,4297.9,4297.8,0.021]
[1755837828718,4.71903707,4297.9,4297.8,0.021]
[1755837828877,4.6958,4297.9,4297.8,0.021]
[1755837829279,5.06009284,4297.9,4297.8,0.021]
[1755837829503,5.72009284,4297.9,4297.8,0.021]
[1755837829899,1.10909284,4297.9,4297.8,0.021]
[1755837830093,5.08432991,4297.9,4297.8,0.021]
[1755837830375,5.06109284,4297.9,4297.8,0.021]
[1755837830909,5.06009284,4297.9,4297.8,0.021]
[1755837831802,0.66919284,4297.9,4297.8,0.021]
[1755837832006,4.64342991,4297.9,4297.8,0.021]
[1755837832207,0.69242991,4297.9,4297.8,0.021]
[1755837832406,4.64342991,4297.9,4297.8,0.021]
[1755837833817,4.33852991,4297.9,4297.8,0.021]
[1755837834501,0.38752991,4297.9,4297.8,0.316]
[1755837834703,4.33852991,4297.9,4297.8,0.316]
[1755837835217,4.33852991,4297.9,4297.8,0.021]
[1755837836628,0.38752991,4297.9,4297.8,0.021]
[1755837836795,4.33852991,4297.9,4297.8,0.021]
[1755837837889,4.34882991,4297.9,4297.8,0.021]
[1755837838119,0.39782991,4297.9,4297.8,0.021]
[1755837838313,4.34882991,4297.9,4297.8,0.021]
[1755837840125,4.78442991,4297.9,4297.8,0.021]
[1755837840314,4.76119284,4297.9,4297.8,0.021]
[1755837840826,4.3969,4297.9,4297.8,0.021]
[1755837841133,3.98453707,4297.9,4297.8,0.021]
[1755837841522,0.02323707,4297.9,4297.8,0.316]
[1755837841688,6.66142422,4297.9,4297.8,0.7633]
[1755837841891,6.63818715,4298.0,4297.8,0.7633]
[1755837842132,3.97323707,4297.9,4297.8,0.316]
[1755837842621,3.97323707,4297.9,4297.8,0.7633]
[1755837844014,4.33748737,4297.9,4297.8,0.7633]
[1755837847027,3.97323707,4297.9,4297.8,0.7633]
[1755837850193,4.33749505,4297.9,4297.8,0.7633]
[1755837852032,4.33649505,4297.9,4297.8,0.316]
[1755837855126,4.61579505,4297.9,4297.8,0.021]
[1755837855841,4.33649505,4297.9,4297.8,0.021]
[1755837857912,4.33649505,4297.9,4297.8,0.762]
[1755837857913,0.38749505,4297.9,4297.8,0.762]
[1755837858129,4.33549505,4297.9,4297.8,0.762]
[1755837858332,0.38749505,4297.9,4297.8,0.762]
[1755837858513,4.31225798,4297.9,4297.8,0.762]
[1755837858713,3.948,4297.9,4297.8,0.762]
[1755837860930,0.02523707,4298.1,4297.8,0.762]
[1755837860931,0.002,4298.1,4297.8,0.762]
[1755837861134,3.948,4298.0,4297.9,0.4368]
[1755837861336,3.948,4298.0,4297.9,0.741]
[1755837862021,0.002,4298.1,4297.9,0.741]
[1755837862218,3.947,4298.0,4297.9,0.3042]
[1755837862644,0.36620466,4298.1,4297.9,0.3042]
[1755837862823,0.002,4298.0,4297.9,0.3042]
[1755837863549,0.002,4298.0,4297.9,0.741]
[1755837864733,0.002,4298.0,4297.9,0.741]
[1755837864948,0.002,4298.0,4297.9,0.3042]
[1755837865134,0.2813,4298.0,4297.8,0.021]
[1755837865339,3.97023707,4297.9,4297.8,0.021]
[1755837865650,4.25143707,4297.9,4297.8,0.021]
[1755837867514,3.97023707,4297.9,4297.8,0.021]
[1755837868060,4.26163707,4297.9,4297.8,0.021]
[1755837868226,4.72073707,4297.9,4297.8,0.021]
[1755837868414,4.6975,4297.9,4297.8,0.021]
[1755837871019,0.7505,4297.9,4297.8,0.021]
[1755837871215,4.26063707,4297.9,4297.8,0.021]
[1755837871616,0.31463707,4297.9,4297.8,0.021]
[1755837872038,4.62492237,4297.9,4297.8,0.021]
[1755837872640,0.67892237,4297.9,4297.8,0.021]
[1755837872840,4.62492237,4297.9,4297.8,0.021]
[1755837874319,0.67892237,4297.9,4297.8,0.021]
[1755837874520,4.33352237,4297.9,4297.8,0.3252]
[1755837874729,4.3102853,4297.9,4297.8,0.3252]
[1755837875595,4.33352237,4297.9,4297.8,0.3252]
[1755837876065,4.62492237,4297.9,4297.8,0.021]
[1755837877358,4.71803707,4297.9,4297.8,0.021]
[1755837877558,4.6948,4297.9,4297.8,0.021]
[1755837880773,5.05909215,4297.9,4297.8,0.021]
[1755837883349,0.66,4297.8,4297.5,0.001]
[1755837883549,6.94338715,4297.6,4297.5,0.001]
[1755837883977,7.38898715,4297.6,4297.5,0.001]
[1755837885245,6.94338715,4297.6,4297.5,0.001]
[1755837885443,10.88838715,4297.6,4297.5,0.001]
[1755837885646,11.99398715,4297.6,4297.5,0.001]
[1755837888260,8.04898715,4297.6,4297.5,0.001]
[1755837888578,11.99398715,4297.6,4297.5,0.001]
[1755837889078,11.99398715,4297.6,4297.1,0.001]
[1755837889079,30.66,4297.5,4297.1,0.001]
[1755837889304,7.60658715,4297.2,4297.1,0.001]
[1755837889500,7.60658715,4297.2,4294.7,5.0]
[1755837889501,0.66,4296.6,4295.0,0.4574]
[1755837889684,6.94798715,4295.9,4295.2,0.4574]
[1755837889881,10.89198715,4295.9,4295.2,0.4574]
[1755837890388,10.58218715,4295.9,4295.5,0.4574]
[1755837890607,6.63818715,4295.9,4295.8,0.3147]
[1755837890799,6.63818715,4295.9,4295.8,0.7721]
[1755837891102,10.88728715,4295.9,4295.8,0.02]
[1755837891274,17.88728715,4295.9,4295.8,0.02]
[1755837891474,17.58218715,4295.9,4295.8,0.02]
[1755837891692,17.58218715,4295.9,4295.8,0.3147]
[1755837892564,17.9466616,4295.9,4295.8,0.3147]
[1755837892769,10.9466616,4295.9,4295.8,0.3147]
[1755837893176,11.2517616,4295.9,4295.8,0.02]
[1755837893606,7.3077616,4295.9,4295.8,0.02]
[1755837893900,11.2527616,4295.9,4295.8,0.02]
[1755837894092,11.6983616,4295.9,4295.8,0.02]
[1755837895408,12.3583616,4295.9,4295.8,0.02]
[1755837895905,11.99388715,4295.9,4295.8,0.02]
[1755837896608,11.54828715,4295.9,4295.8,0.02]
[1755837896977,7.60328715,4295.9,4295.8,0.02]
[1755837897177,11.54828715,4295.9,4295.8,0.02]
[1755837899302,7.60328715,4295.9,4295.8,0.02]
[1755837899509,11.91278041,4295.9,4295.8,0.02]
[1755837900296,11.60768041,4295.9,4295.8,0.021]
[1755837900499,7.00268041,4295.9,4295.8,0.7731]
[1755837900810,10.94768041,4295.9,4295.8,0.7731]
[1755837900997,7.00268041,4295.9,4295.8,0.7731]
[1755837901199,10.94768041,4295.9,4295.8,0.7731]
[1755837901382,7.00268041,4295.9,4295.8,0.021]
[1755837901584,10.94768041,4295.9,4295.8,0.3157]
[1755837901783,7.00268041,4295.9,4295.8,0.3157]
[1755837901984,10.94768041,4295.9,4295.8,0.3157]
[1755837902312,10.94768041,4295.9,4295.8,0.021]
[1755837903190,10.95218041,4295.9,4295.8,0.021]
[1755837903392,10.94768041,4295.9,4295.8,0.3157]
[1755837903592,7.00268041,4295.9,4295.8,0.7731]
[1755837903787,10.94768041,4295.9,4295.8,0.7731]
[1755837905586,10.94768041,4295.9,4295.8,0.3157]
[1755837905916,12.05478041,4295.9,4295.8,0.021]
[1755837907013,0.66,4295.8,4295.3,0.001]
[1755837907215,6.94768715,4295.4,4295.3,0.001]
[1755837907386,10.89268715,4295.4,4295.3,0.001]
[1755837907710,11.55268715,4295.4,4295.3,0.001]
[1755837908710,7.60768715,4295.4,4295.3,0.001]
[1755837909115,11.55268715,4295.4,4295.3,0.001]
[1755837910597,7.60768715,4295.4,4295.3,0.001]
[1755837910798,11.91721649,4295.4,4295.3,0.001]
[1755837911512,10.94771649,4295.4,4295.3,0.316]
[1755837911710,10.94771649,4295.4,4295.3,0.746]
[1755837911887,7.00271649,4295.4,4295.3,0.316]
[1755837912219,7.00271649,4295.4,4295.3,0.746]
[1755837912520,10.94771649,4295.4,4295.3,0.746]
[1755837913416,10.94771649,4295.4,4295.3,0.316]
[1755837913625,11.88831649,4295.4,4295.3,0.001]
[1755837915727,12.35811649,4295.4,4295.3,0.001]
[1755837915904,11.99358715,4295.4,4295.3,0.001]
[1755837916500,11.99358715,4295.4,4294.9,0.001]
[1755837916501,0.66,4295.3,4294.9,0.001]
[1755837916696,7.58068715,4295.0,4294.9,0.001]
[1755837916898,11.52468715,4295.0,4294.9,0.001]
[1755837917791,0.66,4294.9,4294.7,5.0]
[1755837917992,0.66,4294.7,4293.7,0.43]
[1755837918199,6.63818715,4293.9,4293.7,0.43]
[1755837918405,12.37318715,4293.9,4293.8,0.335]
[1755837918612,12.37318715,4293.9,4293.8,0.765]
[1755837919226,12.73779259,4293.9,4293.8,0.765]
[1755837919443,12.73779259,4293.9,4293.8,0.335]
[1755837919646,12.73779259,4293.9,4293.8,0.765]
[1755837919935,2.15560544,4293.9,4293.8,0.765]
[1755837920142,6.09960544,4293.9,4293.8,0.765]
[1755837924751,6.09960544,4293.9,4293.8,0.795]
[1755837924952,2.15560544,4293.9,4293.8,0.795]
[1755837925251,6.09960544,4293.9,4293.8,0.795]
[1755837925738,6.09960544,4293.9,4293.8,1.64030431]
[1755837926442,6.09960544,4293.9,4293.8,0.795]
[1755837926642,6.09960544,4293.9,4293.8,3.795]
[1755837927055,0.36460544,4293.9,4293.8,3.1239394]
[1755837927244,0.36460544,4293.9,4293.8,6.14722879]
[1755837927447,1.792,4294.6,4294.2,2.32870691]
[1755837927765,1.792,4294.6,4293.9,3.0]
[1755837927766,1.792,4294.6,4294.5,5.64355978]
[1755837927965,3.944,4294.8,4294.6,3.0]
[1755837928178,1.792,4295.3,4295.2,2.32818029]
[1755837928370,5.736,4295.3,4295.2,3.07318029]
[1755837928691,3.944,4295.3,4295.2,6.91332666]
[1755837929045,0.02,4295.8,4295.4,2.3280529]
[1755837929249,0.02,4295.8,4295.5,0.02328017]
[1755837929250,3.944,4295.7,4295.5,0.02328017]
[1755837929481,3.944,4295.7,4295.6,0.315]
[1755837929858,0.02,4295.8,4295.6,0.745]
[1755837930068,3.964,4295.8,4295.6,0.745]
[1755837930382,3.964,4295.8,4295.7,0.43]
[1755837930710,4.32840596,4295.8,4295.7,0.745]
[1755837932288,0.38440596,4295.8,4295.7,4.05230705]
[1755837932454,0.38440596,4295.8,4295.7,1.05230705]
[1755837933083,0.38440596,4295.8,4295.7,0.745]
[1755837934391,0.38640596,4295.8,4295.7,3.0729093]
[1755837934681,0.022,4295.8,4295.7,6.0729093]
[1755837935088,0.022,4295.8,4295.7,12.71109645]
[1755837935270,0.022,4295.8,4295.7,6.0729093]
[1755837935452,0.022,4295.8,4295.7,7.57681907]
[1755837937255,0.022,4295.8,4295.7,8.23681907]
[1755837940795,0.022,4295.8,4295.7,12.17881907]
[1755837942667,0.022,4295.8,4295.7,18.81700622]
[1755837945501,1e-08,4295.9,4295.8,5.98785511]
[1755837945765,1e-08,4295.9,4295.8,8.86025585]
[1755837947109,1e-08,4295.9,4295.8,23.11307685]
[1755837947606,1e-08,4295.9,4295.8,23.22907685]
[1755837948200,1e-08,4295.9,4295.8,21.43545885]
[1755837948702,0.002,4296.4,4296.3,2.3275842]
[1755837948910,0.002,4296.6,4296.5,10.29818715]
[1755837949107,0.002,4296.6,4296.5,16.879863]
[1755837949416,0.002,4296.6,4296.5,17.324563]
[1755837949626,1e-08,4296.6,4296.5,17.324563]
[1755837950334,0.002,4297.1,4296.5,17.324563]
[1755837950335,1e-08,4296.8,4296.7,2.98736751]
[1755837950486,1e-08,4297.1,4297.0,2.98720502]
[1755837950688,1e-08,4297.1,4297.0,18.66959217]
[1755837950887,1e-08,4297.1,4297.0,19.11429217]
[1755837951518,1e-08,4297.1,4297.0,15.17329217]
[1755837951704,1e-08,4297.1,4297.0,8.09040502]
[1755837951909,1e-08,4297.1,4297.0,10.03012392]
[1755837952114,1e-08,4297.1,4297.0,13.65792392]
[1755837953125,0.28800001,4297.1,4297.0,11.20692392]
[1755837953938,0.75060001,4297.1,4297.0,4.9397189]
[1755837954227,0.75060001,4297.1,4297.0,5.32720502]
[1755837954394,0.75060001,4297.1,4297.0,3.0]
[1755837954722,1e-08,4297.1,4297.0,5.32720502]
[1755837955534,0.28970001,4297.1,4297.0,5.32720502]
[1755837956726,0.28970001,4297.1,4297.0,9.26720502]
[1755837956928,0.28800001,4297.1,4297.0,10.42665329]
[1755837957140,0.28800001,4297.1,4297.0,6.48665329]
[1755837957309,0.28800001,4297.1,4297.0,5.32720502]
[1755837957502,0.28800001,4297.1,4297.0,3.0]
[1755837957503,0.75060001,4297.1,4297.0,3.0]
[1755837958209,0.28800001,4297.1,4297.0,5.32720502]
[1755837958912,0.75060001,4297.1,4297.0,5.32720502]
[1755837959631,0.28800001,4297.1,4297.0,5.32720502]
[1755837960319,0.65227174,4297.1,4297.0,5.32720502]
[1755837961231,0.65227174,4297.1,4297.0,7.24465636]
[1755837961232,0.36427174,4297.1,4297.0,7.24465636]
[1755837961731,0.36427174,4297.1,4297.0,6.79995636]
[1755837961898,0.36427174,4297.1,4297.0,7.90465636]
[1755837962344,0.65047174,4297.1,4297.0,4.15955134]
[1755837962506,0.65047174,4297.1,4297.0,3.0]
[1755837963036,0.65047174,4297.1,4297.0,5.32720502]
[1755837963206,0.36427174,4297.1,4297.0,5.32720502]
[1755837963536,0.36427174,4297.1,4297.0,5.64040502]
[1755837963836,0.36427174,4297.1,4297.0,5.32720502]
[1755837964441,0.36427174,4297.1,4297.0,6.37197674]
[1755837964808,0.36427174,4297.1,4297.0,6.68517674]
[1755837965003,0.36427174,4297.1,4297.0,7.12987674]
[1755837965218,0.36427174,4297.1,4297.0,6.68517674]
[1755837965640,1e-08,4297.1,4297.0,6.37197674]
[1755837966055,1e-08,4297.1,4297.0,6.68517674]
[1755837966515,1e-08,4297.1,4297.0,7.12987674]
[1755837967244,1e-08,4297.1,4297.0,6.68517674]
[1755837967445,0.00460001,4297.1,4297.0,3.3132]
[1755837967635,0.46420001,4297.1,4297.0,3.0]
[1755837967838,0.46420001,4297.1,4296.7,6.27034949]
[1755837968147,0.4596,4297.0,4296.8,3.0]
[1755837968317,0.0092,4296.9,4296.8,3.0]
[1755837968746,0.0092,4296.9,4296.5,0.001]
[1755837968932,0.4551,4296.8,4296.7,3.0]
[1755837969132,0.4688,4296.8,4296.7,3.0]
[1755837969729,0.4688,4296.8,4296.7,5.32736751]
[1755837970044,0.36429105,4296.9,4296.8,2.32731334]
[1755837970243,0.36969105,4296.9,4296.8,2.32731334]
[1755837971316,0.36969105,4296.9,4296.7,2.3273265]
[1755837971512,0.36969105,4296.9,4296.6,6.943]
[1755837971846,0.83309105,4296.9,4296.6,6.943]
[1755837972048,0.4634,4296.8,4296.6,6.943]
[1755837972252,0.36429105,4296.9,4296.5,0.001]
[1755837972451,0.7505,4296.7,4296.5,0.001]
[1755837973055,0.4556,4296.6,4296.5,0.001]
[1755837973357,0.7505,4296.6,4296.5,0.001]
[1755837975961,0.36429105,4296.9,4296.5,0.2992]
[1755837976132,1.79000001,4297.1,4296.6,0.4652]
[1755837976336,1.79000001,4297.1,4296.5,3.001]
[1755837976538,1.79000001,4297.1,4296.8,2.3272896]
[1755837976924,1.79000001,4297.1,4297.0,2.32720502]
[1755837977331,1.79000001,4297.1,4297.0,5.62540502]
[1755837977531,1e-08,4297.1,4297.0,5.62540502]
[1755837977933,0.28350001,4297.1,4297.0,3.0]
[1755837978524,0.28350001,4297.1,4297.0,5.32720502]
[1755837978725,1e-08,4297.1,4297.0,5.62540502]
[1755837978959,1e-08,4297.1,4297.0,6.93239568]
[1755837979362,0.36425009,4297.1,4297.0,6.93239568]
[1755837980577,0.36425009,4297.1,4297.0,7.59239568]
[1755837983032,0.36425009,4297.1,4297.0,3.84179066]
[1755837983238,0.65305009,4297.1,4297.0,3.0]
[1755837983541,0.65305009,4297.1,4297.0,5.32720502]
[1755837983945,0.65305009,4297.1,4297.0,3.0]
[1755837984462,0.65305009,4297.1,4297.0,5.32720502]
[1755837985271,0.65305009,4297.1,4297.0,3.0]
[1755837985468,0.65305009,4297.1,4297.0,5.32720502]
[1755837985773,0.28880001,4297.1,4297.0,5.32720502]
[1755837986268,1e-08,4297.1,4297.0,5.32720502]
[1755837987868,1e-08,4297.1,4297.0,5.62540502]
[1755837988654,1e-08,4297.1,4297.0,5.32720502]
[1755837988951,0.36426541,4297.1,4297.0,5.32720502]
[1755837989269,0.65316541,4297.1,4297.0,3.0]
[1755837989674,0.36426541,4297.1,4297.0,5.32720502]
[1755837990472,0.36426541,4297.1,4297.0,5.62540502]
[1755837991777,0.36426541,4297.1,4297.0,6.09060502]
[1755837993975,0.36426541,4297.1,4297.0,5.62540502]
[1755837994987,0.36426541,4297.1,4297.0,7.98639556]
[1755837995191,1e-08,4297.1,4297.0,7.98639556]
[1755837997353,1e-08,4297.1,4297.0,11.92639556]
[1755838000263,1e-08,4297.1,4297.0,18.56566982]
[1755838001474,1e-08,4297.1,4297.0,18.56666982]
[1755838003898,1e-08,4297.1,4297.0,18.56566982]
[1755838007019,1e-08,4297.1,4297.0,14.16146982]
[1755838007216,0.28070001,4297.1,4297.0,5.32820502]
[1755838007365,0.28070001,4297.1,4297.0,2.32820502]
[1755838007680,0.28070001,4297.1,4297.0,9.26720502]
[1755838008189,0.28070001,4297.1,4297.0,9.92720502]
[1755838008400,0.75040001,4297.1,4297.0,3.94]
[1755838008605,0.75040001,4297.1,4297.0,6.26720502]
[1755838008822,0.75040001,4297.1,4297.0,0.001]
[1755838009021,0.75040001,4297.1,4297.0,2.32820502]
[1755838009302,0.75040001,4297.1,4297.0,5.35147707]
[1755838009602,0.75040001,4297.1,4297.0,5.32820502]
[1755838010005,1e-08,4297.1,4297.0,5.32820502]
[1755838010205,1e-08,4297.1,4297.0,14.53593105]
[1755838012386,1e-08,4297.1,4297.0,22.24719235]
[1755838016424,1e-08,4297.1,4297.0,19.24719235]
[1755838018208,1e-08,4297.1,4297.0,25.73159235]
[1755838019710,1e-08,4297.1,4297.0,26.18619235]
[1755838020215,1e-08,4297.1,4297.0,23.18619235]
[1755838020918,1e-08,4297.1,4297.0,25.73159235]
[1755838021217,1e-08,4297.1,4297.0,26.18619235]
[1755838024584,0.002,4297.5,4297.4,2.98698841]
[1755838024783,0.002,4297.5,4297.4,11.0507932]
[1755838024985,1e-08,4298.0,4297.9,2.98671769]
[1755838025199,1e-08,4298.0,4297.9,26.38292042]
[1755838025393,1e-08,4298.0,4297.9,26.35965325]
[1755838025716,0.002,4298.5,4297.9,26.35965325]
[1755838025717,0.002,4298.5,4298.2,5.9865553]
[1755838026012,0.002,4298.5,4298.2,12.58109493]
[1755838026216,0.002,4298.5,4298.2,13.03569493]
[1755838027588,0.2827,4298.3,4298.2,8.34869493]
[1755838027799,0.2827,4298.3,4298.2,12.28669493]
[1755838029202,0.2827,4298.3,4298.2,8.34869493]
[1755838029406,0.7468,4298.3,4298.2,12.28669493]
[1755838030210,0.002,4298.3,4298.2,12.57419493]
[1755838030390,0.002,4298.3,4298.2,12.28669493]
[1755838030590,0.2902,4298.3,4298.2,12.28669493]
[1755838031208,0.7543,4298.3,4298.2,2.9865553]
[1755838031408,0.7543,4298.3,4298.0,3.938]
[1755838031725,0.4641,4298.2,4298.0,6.26461495]
[1755838031922,0.4641,4298.2,4298.1,2.32660943]
[1755838032135,0.4641,4298.2,4298.1,6.938]
[1755838032707,0.4641,4298.2,4298.1,6.937]
[1755838033228,0.4641,4298.2,4298.1,3.0]
[1755838033900,0.4641,4298.2,4298.1,5.32660943]
[1755838034929,0.36615632,4298.3,4298.2,2.3265553]
[1755838035127,0.36615632,4298.3,4298.2,6.96026555]
[1755838035330,0.66495632,4298.3,4298.2,6.937]
[1755838035854,0.7526,4298.3,4298.2,6.937]
[1755838036703,0.3008,4298.3,4298.2,6.937]
[1755838037024,0.3008,4298.3,4298.2,3.0]
[1755838039730,0.3008,4298.3,4298.2,5.3265553]
[1755838039954,0.3008,4298.3,4298.2,3.0]
[1755838041734,0.3053,4298.3,4298.2,3.0]
[1755838042761,0.3008,4298.3,4298.2,3.0]